bitfinex-derivatives/quotes_BTCF0:USTF0_20241116
["timestamp","ask_amount","ask_price","bid_price","bid_amount"]
[1731721621156,0.3608,91189.0,91170.0,0.3608]
[1731721621157,0.03106518,91174.0,91170.0,0.3608]
[1731721621346,0.16381832,91183.0,91171.0,0.0333]
[1731721621549,0.0083638,91173.0,91171.0,0.0333]
[1731721621851,0.16395176,91184.0,91171.0,0.36234]
[1731721622050,0.00013344,91184.0,91177.0,0.3608]
[1731721622252,0.16381832,91195.0,91179.0,0.3608]
[1731721622460,0.00060001,91196.0,91191.0,0.3608]
[1731721622660,0.16381832,91199.0,91191.0,0.3608]
[1731721622851,0.16381832,91201.0,91191.0,0.3608]
[1731721623043,0.08480001,91205.0,91199.0,0.3608]
[1731721623044,0.16381832,91202.0,91199.0,0.3608]
[1731721623351,0.00013142,91201.0,91199.0,0.3608]
[1731721625551,0.00013142,91201.0,91200.0,0.0306]
[1731721628957,0.00013142,91201.0,91191.0,0.0012]
[1731721629143,0.48538338,91192.0,91191.0,0.0012]
[1731721629348,0.20882338,91192.0,91182.0,0.3608]
[1731721629549,0.12458338,91183.0,91182.0,0.3608]
[1731721629847,0.12458338,91183.0,91165.0,0.26099209]
[1731721629848,0.12458338,91183.0,91161.0,0.0051]
[1731721630155,0.12458338,91183.0,91159.0,0.3608]
[1731721630952,0.3608,91181.0,91168.0,0.3608]
[1731721631151,0.08424,91180.0,91168.0,0.3608]
[1731721631656,0.12458338,91174.0,91168.0,0.3608]
[1731721632366,0.12458338,91174.0,91159.0,0.3608]
[1731721632547,0.12458338,91166.0,91159.0,0.40901436]
[1731721632747,0.12458338,91166.0,91145.0,0.0352]
[1731721632748,0.44504,91165.0,91149.0,0.19557931]
[1731721632959,0.12458338,91158.0,91155.0,0.0474034]
[1731721633261,0.12458338,91158.0,91146.0,0.19557931]
[1731721633451,0.12458338,91158.0,91144.0,0.033]
[1731721633653,0.12458338,91158.0,91147.0,0.3608]
[1731721635661,0.0309,91164.0,91155.0,0.3608]
[1731721635863,0.20942339,91165.0,91155.0,0.3608]
[1731721636158,0.20882338,91165.0,91155.0,0.3608]
[1731721637064,0.3608,91173.0,91164.0,0.3608]
[1731721637261,0.0329,91177.0,91172.0,0.3608]
[1731721638059,0.0329,91177.0,91164.0,0.3608]
[1731721638965,0.12458338,91172.0,91164.0,0.3608]
[1731721640064,0.08424,91176.0,91164.0,0.3608]
[1731721640955,0.12458338,91173.0,91164.0,0.3608]
[1731721641956,0.12458338,91173.0,91159.0,0.3608]
[1731721642164,0.48538338,91173.0,91155.0,0.40847652]
[1731721642361,0.48538338,91173.0,91155.0,0.3608]
[1731721643161,0.48538338,91173.0,91157.0,0.19557931]
[1731721643558,0.48538338,91173.0,91159.0,0.19557931]
[1731721644054,0.48538338,91173.0,91158.0,0.19557931]
[1731721644254,0.48538338,91173.0,91159.0,0.19557931]
[1731721645062,0.48538338,91173.0,91160.0,0.19557931]
[1731721645458,0.48538338,91173.0,91161.0,0.19557931]
[1731721645664,0.48538338,91173.0,91160.0,0.19557931]
[1731721645868,0.3608,91173.0,91163.0,0.3608]
[1731721646162,0.3608,91173.0,91164.0,0.19557931]
[1731721646365,0.3608,91173.0,91163.0,0.3608]
[1731721646366,0.1171,91177.0,91165.0,0.19557931]
[1731721647367,0.1171,91177.0,91166.0,0.19557931]
[1731721648561,0.1171,91177.0,91163.0,0.3608]
[1731721648562,0.1171,91177.0,91164.0,0.19557931]
[1731721649162,0.1171,91177.0,91163.0,0.3608]
[1731721649163,0.1171,91177.0,91165.0,0.19557931]
[1731721649363,0.3608,91182.0,91174.0,0.3608]
[1731721649667,0.2304559,91219.0,91174.0,0.3608]
[1731721649668,0.0842,91198.0,91179.0,0.48538338]
[1731721649873,0.145,91207.0,91197.0,0.3608]
[1731721650260,0.0308,91207.0,91197.0,0.3608]
[1731721650462,0.00164527,91208.0,91197.0,0.3608]
[1731721651065,0.00164527,91208.0,91197.0,0.39838222]
[1731721654666,0.00164527,91208.0,91198.0,0.32896]
[1731721655070,0.00164527,91208.0,91199.0,0.32896]
[1731721655274,0.00164527,91208.0,91197.0,0.72734222]
[1731721656069,0.12458338,91199.0,91197.0,0.39838222]
[1731721656265,0.12458338,91207.0,91197.0,0.39838222]
[1731721657077,0.00164527,91208.0,91197.0,0.39838222]
[1731721658164,0.12458338,91198.0,91191.0,0.3608]
[1731721658567,0.12458338,91198.0,91182.0,0.08416]
[1731721658568,0.12458338,91198.0,91182.0,0.19569084]
[1731721658877,0.00831667,91197.0,91180.0,0.19569084]
[1731721659192,0.12458338,91198.0,91180.0,0.19569084]
[1731721659475,0.08416,91199.0,91186.0,0.3608]
[1731721659683,0.00822444,91198.0,91186.0,0.3608]
[1731721659873,0.3608,91203.0,91186.0,0.3608]
[1731721660067,0.00822444,91200.0,91188.0,0.12458338]
[1731721660274,0.08416,91209.0,91200.0,0.3608]
[1731721661776,0.36093142,91201.0,91186.0,0.3608]
[1731721661981,0.12458338,91199.0,91186.0,0.3608]
[1731721662478,0.00013142,91201.0,91186.0,0.3608]
[1731721663374,0.00013142,91201.0,91186.0,0.39877464]
[1731721663778,0.00013142,91201.0,91194.0,0.3608]
[1731721664274,0.00013142,91201.0,91194.0,0.48538338]
[1731721664983,0.00013142,91201.0,91194.0,0.3608]
[1731721665475,0.00013142,91201.0,91196.0,0.19569084]
[1731721665679,0.00013142,91201.0,91200.0,0.19569084]
[1731721665866,0.00013142,91201.0,91196.0,0.26092112]
[1731721666267,0.00013142,91201.0,91197.0,0.26092112]
[1731721669377,0.00013142,91201.0,91194.0,0.44624]
[1731721669378,0.00013142,91201.0,91198.0,0.26092112]
[1731721669680,0.00013142,91201.0,91197.0,0.26092112]
[1731721669879,0.00013142,91201.0,91198.0,0.26092112]
[1731721671778,0.00013142,91201.0,91195.0,0.3608]
[1731721671779,0.00013142,91201.0,91200.0,0.26092112]
[1731721673172,0.00013142,91201.0,91195.0,0.6869514]
[1731721673376,0.00013142,91201.0,91195.0,0.3608]
[1731721674677,0.00013142,91201.0,91195.0,0.38272683]
[1731721675183,4.2e-07,91201.0,91197.0,0.12458338]
[1731721677389,4.2e-07,91201.0,91198.0,0.32896]
[1731721677592,4.2e-07,91201.0,91199.0,0.32896]
[1731721677778,4.2e-07,91201.0,91200.0,0.32896]
[1731721677981,4.2e-07,91201.0,91198.0,0.32896]
[1731721678186,4.2e-07,91201.0,91200.0,0.3608]
[1731721678486,4.2e-07,91201.0,91200.0,0.44492]
[1731721680376,4.2e-07,91201.0,91200.0,1.17232632]
[1731721681381,4.2e-07,91201.0,91200.0,1.17279578]
[1731721682092,4.2e-07,91201.0,91200.0,0.78141409]
[1731721682588,4.2e-07,91201.0,91200.0,1.17466451]
[1731721684184,4.2e-07,91201.0,91200.0,0.78141409]
[1731721685196,4.2e-07,91201.0,91200.0,0.78048396]
[1731721685391,4.2e-07,91201.0,91200.0,1.17373438]
[1731721685896,4.2e-07,91201.0,91200.0,0.78048396]
[1731721687297,4.2e-07,91201.0,91200.0,0.69636396]
[1731721687596,4.2e-07,91201.0,91200.0,1.08961438]
[1731721689292,4.2e-07,91201.0,91200.0,0.69636396]
[1731721692500,4.2e-07,91201.0,91200.0,1.08993468]
[1731721692804,4.2e-07,91201.0,91200.0,0.69636396]
[1731721694796,4.2e-07,91201.0,91200.0,0.69617169]
[1731721695302,4.2e-07,91201.0,91200.0,0.3608]
[1731721696196,4.2e-07,91201.0,91200.0,0.69611553]
[1731721697608,0.2242987,91217.0,91200.0,1.32507553]
[1731721697609,0.13142902,91210.0,91200.0,1.32507553]
[1731721697799,0.19619844,91228.0,91210.0,0.12458338]
[1731721697999,0.19619844,91232.0,91227.0,0.3608]
[1731721698218,0.05327465,91231.0,91227.0,0.3608]
[1731721698404,0.0964,91240.0,91227.0,0.3608]
[1731721698405,0.19619844,91237.0,91227.0,0.3608]
[1731721698711,0.00010951,91236.0,91227.0,0.3608]
[1731721698899,0.05338298,91236.0,91227.0,0.3608]
[1731721699105,0.00010951,91236.0,91227.0,0.3608]
[1731721699901,0.00010951,91236.0,91235.0,0.3608]
[1731721702614,0.00010951,91236.0,91235.0,0.44488]
[1731721703410,0.00010951,91236.0,91235.0,0.70724063]
[1731721703811,0.00010951,91236.0,91235.0,0.44488]
[1731721704313,8e-07,91241.0,91235.0,0.44488]
[1731721704613,0.0622,91253.0,91240.0,0.48538338]
[1731721704815,0.0622,91253.0,91252.0,0.48538338]
[1731721706110,0.031,91253.0,91252.0,0.48538338]
[1731721706306,0.031,91253.0,91252.0,0.68101408]
[1731721707305,0.03943002,91253.0,91252.0,0.48538338]
[1731721708806,0.03943002,91253.0,91252.0,0.39915766]
[1731721709213,0.03943401,91253.0,91252.0,0.39915766]
[1731721710314,0.031,91253.0,91252.0,0.39915766]
[1731721711025,0.031,91253.0,91235.0,0.02191781]
[1731721711319,0.031,91253.0,91235.0,0.10599781]
[1731721712021,0.00843511,91252.0,91235.0,0.02191781]
[1731721712246,0.00843507,91251.0,91240.0,0.39887131]
[1731721712412,0.00843507,91250.0,91240.0,0.39887131]
[1731721712608,0.08408,91252.0,91240.0,0.39887131]
[1731721712922,0.0084239,91251.0,91240.0,0.39887131]
[1731721713121,0.0084239,91250.0,91240.0,0.39887131]
[1731721713318,0.0084239,91249.0,91240.0,0.39887131]
[1731721713514,0.12458338,91246.0,91240.0,0.39887131]
[1731721713722,0.0309,91245.0,91240.0,0.39887131]
[1731721714218,0.00852076,91244.0,91240.0,0.39887131]
[1731721714517,0.0309,91245.0,91240.0,0.39887131]
[1731721718019,0.0309,91245.0,91243.0,0.3608]
[1731721718219,0.031,91253.0,91243.0,0.3608]
[1731721718524,0.0311,91259.0,91243.0,0.3608]
[1731721718721,0.0311,91259.0,91252.0,0.3608]
[1731721721822,0.0311,91259.0,91252.0,0.39944205]
[1731721723425,0.0311,91259.0,91255.0,0.1956307]
[1731721723632,0.0311,91259.0,91252.0,0.39944205]
[1731721723633,0.0311,91259.0,91253.0,0.1956307]
[1731721723819,0.0311,91259.0,91252.0,0.39944205]
[1731721723820,0.0311,91259.0,91252.0,0.59507275]
[1731721724015,0.15568338,91259.0,91252.0,0.39944205]
[1731721724318,0.15568338,91259.0,91254.0,0.1956307]
[1731721724527,0.15568338,91259.0,91253.0,0.1956307]
[1731721725223,0.15568338,91259.0,91252.0,0.66061433]
[1731721725521,0.15568338,91259.0,91252.0,0.39944205]
[1731721727926,0.16389169,91258.0,91252.0,0.39944205]
[1731721728318,0.15568338,91259.0,91252.0,0.39944205]
[1731721728319,0.16400727,91257.0,91252.0,0.39944205]
[1731721729438,0.16389169,91253.0,91252.0,0.39944205]
[1731721729736,0.02284901,91253.0,91252.0,0.39944205]
[1731721730120,0.16400141,91253.0,91252.0,0.39944205]
[1731721730330,0.05325895,91253.0,91252.0,0.39944205]
[1731721730526,0.02285431,91253.0,91252.0,0.39944205]
[1731721730936,0.07611326,91253.0,91252.0,0.39944205]
[1731721731625,0.19631402,91257.0,91252.0,0.39944205]
[1731721731626,0.1641634,91257.0,91252.0,0.39944205]
[1731721731825,0.22689844,91270.0,91256.0,0.48538338]
[1731721732128,0.0307,91270.0,91269.0,0.3608]
[1731721732431,0.19784252,91275.0,91269.0,0.3608]
[1731721732734,0.05331841,91274.0,91269.0,0.3608]
[1731721733524,7.166e-05,91274.0,91269.0,0.3608]
[1731721734427,7.166e-05,91274.0,91273.0,0.26162892]
[1731721735326,7.166e-05,91274.0,91273.0,0.26155254]
[1731721735529,7.166e-05,91274.0,91272.0,0.26155254]
[1731721736235,7.166e-05,91274.0,91273.0,0.3608]
[1731721738130,0.00012166,91274.0,91273.0,0.3608]
[1731721741335,0.05336835,91274.0,91273.0,0.13074388]
[1731721741535,0.00012166,91274.0,91273.0,0.13074388]
[1731721742934,0.26029819,91297.0,91273.0,0.13074388]
[1731721742935,0.19619844,91288.0,91273.0,0.13074388]
[1731721743132,0.19619844,91293.0,91287.0,0.3608]
[1731721743337,0.05323936,91292.0,91287.0,0.3608]
[1731721743537,0.10064,91300.0,91287.0,0.3608]
[1731721743742,0.06198424,91299.0,91287.0,0.3608]
[1731721743933,0.1,91300.0,91295.0,0.3608]
[1731721743934,0.00875005,91298.0,91295.0,0.3608]
[1731721744127,0.00875005,91297.0,91295.0,0.3608]
[1731721744327,0.00875005,91296.0,91295.0,0.3608]
[1731721744629,0.02276001,91296.0,91295.0,0.3608]
[1731721745542,0.02287176,91299.0,91295.0,0.3608]
[1731721745734,0.02287179,91298.0,91295.0,0.39909415]
[1731721745934,0.02287181,91297.0,91295.0,0.39909415]
[1731721746135,0.1,91300.0,91295.0,0.39909415]
[1731721746136,0.02287181,91296.0,91295.0,0.39909415]
[1731721746337,0.01412176,91296.0,91295.0,0.03829415]
[1731721746638,0.01412176,91296.0,91285.0,0.084]
[1731721746639,0.3608,91297.0,91285.0,0.084]
[1731721746834,0.02287181,91296.0,91285.0,0.084]
[1731721748630,0.02287181,91296.0,91290.0,0.19602524]
[1731721749035,0.14745519,91296.0,91286.0,0.19602524]
[1731721749334,0.3608,91288.0,91285.0,0.03821115]
[1731721749538,0.05357181,91287.0,91277.0,0.0051]
[1731721749736,0.05357181,91287.0,91270.0,0.3608]
[1731721749737,0.02287181,91286.0,91273.0,0.19602524]
[1731721749936,0.05347181,91286.0,91273.0,0.19602524]
[1731721750133,0.05347181,91286.0,91270.0,0.3659]
[1731721750134,0.3608,91276.0,91271.0,0.03823048]
[1731721750438,0.02287181,91275.0,91270.0,0.19602524]
[1731721750649,0.02287181,91275.0,91269.0,0.19602524]
[1731721750941,0.02287181,91275.0,91270.0,0.03699322]
[1731721751146,0.02287181,91275.0,91270.0,0.23301846]
[1731721751340,0.02287181,91275.0,91270.0,0.19602524]
[1731721751540,0.3608,91277.0,91270.0,0.19602524]
[1731721751741,0.3608,91277.0,91269.0,0.19602524]
[1731721752048,0.3608,91319.0,91276.0,0.97076676]
[1731721752244,0.0051,91312.0,91299.0,0.32009757]
[1731721752545,0.3608,91319.0,91299.0,0.38529237]
[1731721752746,0.3608,91319.0,91299.0,0.41569237]
[1731721753042,0.3608,91319.0,91299.0,0.15498338]
[1731721753245,0.3608,91319.0,91299.0,0.48358338]
[1731721753444,0.3608,91319.0,91312.0,0.3608]
[1731721753950,0.032,91321.0,91312.0,0.3608]
[1731721756051,0.3608,91315.0,91310.0,0.19539855]
[1731721756346,0.3608,91315.0,91302.0,0.0051]
[1731721756347,0.3608,91315.0,91305.0,0.19539855]
[1731721756555,0.3608,91315.0,91306.0,0.3608]
[1731721759249,0.032,91321.0,91306.0,0.3608]
[1731721759250,0.3608,91320.0,91306.0,0.3608]
[1731721759547,0.12458338,91311.0,91306.0,0.3608]
[1731721759851,0.12458338,91319.0,91306.0,0.3608]
[1731721760053,0.02324081,91318.0,91306.0,0.3608]
[1731721760245,0.12458338,91319.0,91306.0,0.3608]
[1731721760246,0.02324081,91317.0,91306.0,0.3608]
[1731721760546,0.02324081,91316.0,91306.0,0.3608]
[1731721760849,0.00893877,91315.0,91306.0,0.3608]
[1731721761051,0.00893877,91314.0,91306.0,0.3608]
[1731721761250,0.00893877,91313.0,91306.0,0.3608]
[1731721761447,0.00893877,91312.0,91306.0,0.3608]
[1731721761641,0.00893877,91311.0,91306.0,0.3608]
[1731721761852,0.00893877,91310.0,91306.0,0.3608]
[1731721762153,0.00893877,91309.0,91306.0,0.3608]
[1731721762353,0.00893877,91308.0,91306.0,0.3608]
[1731721762654,0.3608,91320.0,91306.0,0.3608]
[1731721762954,0.10724919,91319.0,91306.0,0.3608]
[1731721763142,0.02328919,91318.0,91306.0,0.3608]
[1731721763343,0.02329039,91317.0,91306.0,0.3608]
[1731721763647,0.02329039,91316.0,91306.0,0.3608]
[1731721763846,0.02329039,91315.0,91306.0,0.3608]
[1731721764047,0.02329039,91314.0,91306.0,0.3608]
[1731721764358,0.02329039,91313.0,91306.0,0.3608]
[1731721764655,0.02329039,91312.0,91306.0,0.3608]
[1731721764855,0.02329039,91311.0,91306.0,0.3608]
[1731721765157,0.02329039,91310.0,91306.0,0.3608]
[1731721765354,0.02329039,91309.0,91306.0,0.3608]
[1731721765552,0.00895784,91308.0,91306.0,0.3608]
[1731721765752,0.1305852,91317.0,91306.0,0.3608]
[1731721765753,0.00893248,91307.0,91306.0,0.3608]
[1731721766558,0.1305852,91316.0,91306.0,0.3608]
[1731721766758,0.00893401,91315.0,91306.0,0.3608]
[1731721767052,0.00893401,91314.0,91306.0,0.3608]
[1731721767249,0.00893401,91313.0,91306.0,0.3608]
[1731721767452,0.1305852,91315.0,91306.0,0.3608]
[1731721767650,0.00894647,91314.0,91306.0,0.3608]
[1731721767848,0.1305852,91316.0,91306.0,0.3608]
[1731721768049,0.00894647,91315.0,91306.0,0.3608]
[1731721768345,0.3608,91309.0,91301.0,0.0383816]
[1731721768543,0.12458338,91302.0,91286.0,0.02190081]
[1731721768754,0.3608,91298.0,91289.0,0.0051]
[1731721768950,0.3608,91298.0,91286.0,0.02190081]
[1731721769347,0.13084838,91304.0,91294.0,0.12458338]
[1731721769645,0.0051,91322.0,91302.0,0.12458338]
[1731721769646,0.13084838,91317.0,91302.0,0.12458338]
[1731721769845,0.00886387,91316.0,91308.0,0.3608]
[1731721770049,0.02304602,91318.0,91308.0,0.3608]
[1731721770251,0.13084838,91319.0,91308.0,0.3608]
[1731721770252,0.00886387,91315.0,91308.0,0.3608]
[1731721770456,0.02304602,91314.0,91308.0,0.3608]
[1731721770658,0.0326,91321.0,91310.0,0.2605314]
[1731721770845,0.0326,91321.0,91315.0,0.19575669]
[1731721771255,0.00878713,91320.0,91316.0,0.19575669]
[1731721771461,0.00878713,91319.0,91317.0,0.19575669]
[1731721771647,0.00878713,91318.0,91317.0,0.19575669]
[1731721771852,0.0326,91321.0,91317.0,0.19575669]
[1731721771853,0.00878713,91320.0,91317.0,0.19575669]
[1731721772154,0.00878713,91319.0,91318.0,0.19575669]
[1731721772543,0.00878713,91320.0,91318.0,0.19575669]
[1731721772856,0.32852,91319.0,91308.0,0.19575669]
[1731721773048,0.3608,91309.0,91305.0,0.19575669]
[1731721773245,0.00878713,91308.0,91304.0,0.19575669]
[1731721773556,0.12458338,91306.0,91300.0,0.19575669]
[1731721773745,0.3608,91301.0,91300.0,0.19575669]
[1731721773944,0.3608,91301.0,91294.0,0.0051]
[1731721773945,0.36970907,91301.0,91298.0,0.19575669]
[1731721774157,0.04060907,91300.0,91297.0,0.19575669]
[1731721774350,0.00890907,91299.0,91296.0,0.19575669]
[1731721774555,0.00890907,91298.0,91296.0,0.19575669]
[1731721774752,0.00890907,91297.0,91296.0,0.19575669]
[1731721775153,0.00890907,91297.0,91295.0,0.19575669]
[1731721775350,0.0313,91299.0,91296.0,0.19575669]
[1731721775653,0.00887973,91298.0,91296.0,0.19575669]
[1731721775956,0.00887973,91297.0,91296.0,0.19575669]
[1731721776455,0.00887973,91297.0,91292.0,0.2605314]
[1731721776860,0.00887973,91296.0,91292.0,0.2605314]
[1731721777159,0.00887973,91295.0,91292.0,0.2605314]
[1731721777359,0.0313,91299.0,91292.0,0.2605314]
[1731721777556,0.0088815,91298.0,91297.0,0.19599482]
[1731721777852,0.3696815,91298.0,91297.0,0.19599482]
[1731721778457,0.3696815,91298.0,91289.0,0.03726665]
[1731721778458,0.3696815,91298.0,91296.0,0.19599482]
[1731721778655,0.0088815,91297.0,91294.0,0.19599482]
[1731721778851,0.0088815,91297.0,91291.0,0.19599482]
[1731721779052,0.0088815,91297.0,91289.0,0.19599482]
[1731721779250,0.3608,91290.0,91288.0,0.19599482]
[1731721779764,0.3608,91290.0,91289.0,0.19599482]
[1731721779964,0.36972826,91290.0,91289.0,0.19599482]
[1731721780148,0.36972826,91290.0,91284.0,0.28243595]
[1731721780149,0.36972826,91290.0,91285.0,0.2605314]
[1731721780346,0.3608,91290.0,91285.0,0.2605314]
[1731721781260,0.3608,91290.0,91287.0,0.2605314]
[1731721781559,0.00893556,91289.0,91286.0,0.2605314]
[1731721781749,0.00893556,91288.0,91286.0,0.2605314]
[1731721781951,0.00893556,91287.0,91286.0,0.2605314]
[1731721782151,0.00893556,91287.0,91285.0,0.2605314]
[1731721782355,0.00893556,91286.0,91285.0,0.2605314]
[1731721782560,0.13084838,91316.0,91286.0,0.32864]
[1731721782750,0.02315037,91306.0,91303.0,0.19604142]
[1731721783054,0.3608,91317.0,91304.0,0.26138857]
[1731721783260,0.3608,91317.0,91305.0,0.26138857]
[1731721784459,0.3608,91317.0,91306.0,0.26138857]
[1731721784659,0.00899621,91316.0,91310.0,0.19599539]
[1731721784955,0.00899621,91315.0,91310.0,0.19599539]
[1731721785153,0.00899621,91314.0,91310.0,0.19599539]
[1731721785459,0.00899699,91313.0,91309.0,0.26138857]
[1731721785658,0.3608,91317.0,91309.0,0.26138857]
[1731721785864,0.00898895,91316.0,91302.0,0.55679756]
[1731721786163,0.00898895,91315.0,91302.0,0.55679756]
[1731721786363,0.49164838,91317.0,91302.0,0.55679756]
[1731721786364,0.00898895,91314.0,91302.0,0.55679756]
[1731721786565,0.00898896,91313.0,91303.0,0.19599756]
[1731721786858,0.00898896,91312.0,91307.0,0.19599756]
[1731721787058,0.3608,91317.0,91307.0,0.19599756]
[1731721787273,0.00897295,91316.0,91307.0,0.19599756]
[1731721787460,0.00897295,91315.0,91307.0,0.19599756]
[1731721787759,0.00897295,91314.0,91307.0,0.19599756]
[1731721787961,0.00897295,91313.0,91307.0,0.19599756]
[1731721788267,0.3608,91317.0,91307.0,0.19599756]
[1731721788458,0.00896681,91316.0,91308.0,0.19599756]
[1731721788760,0.3608,91317.0,91308.0,0.19599756]
[1731721788761,0.00896681,91315.0,91308.0,0.19599756]
[1731721788956,0.00896681,91314.0,91308.0,0.19599756]
[1731721789163,0.13084838,91320.0,91308.0,0.55679756]
[1731721789164,0.00896681,91313.0,91308.0,0.55679756]
[1731721789456,0.00896681,91312.0,91308.0,0.55679756]
[1731721789661,0.00896681,91311.0,91308.0,0.55679756]
[1731721789862,0.13084838,91320.0,91308.0,0.55679756]
[1731721790159,0.00899587,91319.0,91308.0,0.55679756]
[1731721790362,0.00899587,91318.0,91308.0,0.55679756]
[1731721790551,0.00899587,91317.0,91308.0,0.55679756]
[1731721790753,0.00899587,91316.0,91308.0,0.55679756]
[1731721790955,0.00899587,91315.0,91308.0,0.55679756]
[1731721791256,0.13084838,91320.0,91308.0,0.55679756]
[1731721791460,0.00902154,91319.0,91308.0,0.3608]
[1731721791660,0.13084838,91321.0,91308.0,0.3608]
[1731721791864,0.00903292,91320.0,91308.0,0.3608]
[1731721792163,0.3608,91322.0,91317.0,0.00013752]
[1731721792164,0.00903292,91319.0,91317.0,0.00013752]
[1731721792353,0.49220839,91322.0,91317.0,0.00013752]
[1731721792662,0.13988103,91321.0,91317.0,0.00013752]
[1731721792863,0.00903265,91320.0,91317.0,0.00013752]
[1731721793054,0.00903265,91319.0,91317.0,0.00013752]
[1731721793255,0.13084838,91321.0,91317.0,0.00013752]
[1731721793256,0.00903265,91318.0,91317.0,0.00013752]
[1731721794961,0.10369058,91320.0,91317.0,0.00013752]
[1731721795355,0.08691368,91319.0,91317.0,0.00013752]
[1731721795551,0.00900533,91318.0,91317.0,0.00013752]
[1731721796762,0.02336307,91318.0,91317.0,0.00013752]
[1731721797860,0.0232849,91318.0,91317.0,0.00013752]
[1731721798568,0.15413328,91318.0,91317.0,0.00013752]
[1731721799161,0.15413328,91318.0,91306.0,0.0051]
[1731721799162,8.073e-05,91317.0,91306.0,0.0051]
[1731721799368,0.46449058,91307.0,91299.0,0.0051]
[1731721799571,0.5002449,91306.0,91293.0,0.20105789]
[1731721799872,0.3608,91295.0,91293.0,0.19595789]
[1731721800074,0.00895573,91294.0,91293.0,0.19595789]
[1731721800461,0.00895573,91294.0,91292.0,0.3608]
[1731721800660,0.36088073,91317.0,91293.0,1.06443106]
[1731721800861,0.0088214,91316.0,91304.0,0.19600117]
[1731721801168,0.0088214,91315.0,91305.0,0.0307]
[1731721801470,0.0088214,91314.0,91305.0,0.0307]
[1731721801673,0.0088214,91313.0,91305.0,0.0307]
[1731721801864,0.0088214,91312.0,91303.0,0.19600117]
[1731721802071,0.0088214,91311.0,91302.0,0.19600117]
[1731721802280,0.0322,91315.0,91303.0,0.19600117]
[1731721802572,0.00877749,91314.0,91303.0,0.19600117]
[1731721802772,0.00877749,91313.0,91303.0,0.19600117]
[1731721802971,0.00877749,91312.0,91303.0,0.19600117]
[1731721803274,0.00877749,91311.0,91302.0,0.19600117]
[1731721803568,0.00878671,91310.0,91304.0,0.19600117]
[1731721803758,0.0322,91315.0,91303.0,0.19600117]
[1731721803961,0.00875146,91314.0,91303.0,0.19600117]
[1731721804174,0.00875146,91313.0,91304.0,0.19600117]
[1731721804477,0.00875146,91312.0,91304.0,0.19600117]
[1731721804670,0.0322,91315.0,91306.0,0.19600117]
[1731721805767,0.0322,91315.0,91305.0,0.19600117]
[1731721806562,0.0322,91315.0,91306.0,0.19600117]
[1731721807368,0.0322,91315.0,91307.0,0.19600117]
[1731721807574,0.0322,91315.0,91305.0,0.19600117]
[1731721807774,0.0322,91315.0,91296.0,0.0051]
[1731721807775,0.10369058,91307.0,91302.0,0.19600117]
[1731721807969,0.46449058,91307.0,91297.0,0.19600117]
[1731721808175,0.3608,91298.0,91293.0,0.00124]
[1731721808567,0.3608,91298.0,91287.0,0.19600117]
[1731721808872,0.3608,91298.0,91297.0,0.26133489]
[1731721809573,0.3608,91298.0,91296.0,0.26133489]
[1731721809787,0.3608,91298.0,91293.0,0.26133489]
[1731721810178,0.3608,91298.0,91294.0,0.26133489]
[1731721810386,0.00884235,91297.0,91294.0,0.26133489]
[1731721810584,0.3608,91298.0,91293.0,0.26133489]
[1731721810873,0.00884231,91297.0,91293.0,0.26133489]
[1731721811078,0.3608,91298.0,91293.0,0.26133489]
[1731721811271,0.3608,91298.0,91294.0,0.26133489]
[1731721811468,0.0088433,91297.0,91292.0,0.26133489]
[1731721811666,0.7216,91298.0,91295.0,0.26133489]
[1731721811866,0.08396,91306.0,91297.0,0.32666862]
[1731721812066,0.08396,91306.0,91285.0,0.0329]
[1731721812067,0.08396,91306.0,91304.0,0.26183078]
[1731721812271,0.08396,91306.0,91303.0,0.26183078]
[1731721812474,0.3608,91307.0,91302.0,0.32666862]
[1731721812677,0.3608,91307.0,91305.0,0.32666862]
[1731721812877,0.3608,91318.0,91306.0,0.44666803]
[1731721813180,0.3608,91328.0,91306.0,0.44666803]
[1731721813181,0.3608,91328.0,91316.0,0.32731827]
[1731721813370,0.3608,91328.0,91316.0,0.67026022]
[1731721813571,0.3608,91328.0,91316.0,0.34297745]
[1731721813980,0.14796,91334.0,91316.0,0.73566144]
[1731721814474,0.14796,91334.0,91316.0,0.34297745]
[1731721814670,0.14796,91334.0,91316.0,0.73566144]
[1731721815368,0.3608,91329.0,91316.0,0.73566144]
[1731721815982,0.1309938,91327.0,91314.0,0.29990498]
[1731721816181,0.1309938,91326.0,91314.0,0.10369058]
[1731721816677,0.1309938,91327.0,91314.0,0.10369058]
[1731721817174,0.1309938,91328.0,91314.0,0.10369058]
[1731721817571,0.1309938,91328.0,91314.0,0.14214339]
[1731721818374,0.1309938,91327.0,91315.0,0.1962144]
[1731721818981,0.00890409,91316.0,91315.0,0.1962144]
[1731721819376,0.00890409,91316.0,91314.0,0.33835779]
[1731721819682,0.00890409,91315.0,91314.0,0.03845281]
[1731721819985,0.00890409,91315.0,91312.0,0.5570144]
[1731721820185,0.00890409,91314.0,91312.0,0.59377983]
[1731721820378,0.0089203,91313.0,91312.0,0.23297983]
[1731721820574,0.0089203,91313.0,91312.0,0.03676543]
[1731721820776,0.0089203,91313.0,91309.0,0.1962144]
[1731721820980,0.0089203,91312.0,91309.0,0.1962144]
[1731721821178,0.0089203,91311.0,91309.0,0.1962144]
[1731721821379,0.0089203,91310.0,91309.0,0.1962144]
[1731721821678,0.0089203,91310.0,91307.0,0.0325]
[1731721821987,0.0089203,91309.0,91304.0,0.36744671]
[1731721822284,0.0089203,91308.0,91304.0,0.10582751]
[1731721822486,0.0089203,91307.0,91304.0,0.10582751]
[1731721822673,0.3608,91321.0,91304.0,0.10582751]
[1731721822982,0.00890709,91316.0,91313.0,0.327024]
[1731721823187,0.12683277,91315.0,91312.0,0.26164108]
[1731721823383,0.3608,91313.0,91312.0,0.26165883]
[1731721823678,0.3608,91313.0,91308.0,0.327024]
[1731721823679,0.38394219,91313.0,91308.0,0.327024]
[1731721823879,0.02314219,91312.0,91307.0,0.327024]
[1731721824187,0.00890709,91311.0,91308.0,0.66906189]
[1731721824375,0.3608,91321.0,91309.0,0.34203789]
[1731721824576,0.00890521,91316.0,91312.0,0.32702311]
[1731721824792,0.3608,91321.0,91307.0,0.39268399]
[1731721824793,0.00890521,91315.0,91313.0,0.43071369]
[1731721824982,0.3608,91321.0,91314.0,0.34198878]
[1731721825182,0.00884034,91316.0,91315.0,0.34198878]
[1731721825484,0.3608,91321.0,91315.0,0.34198878]
[1731721825680,0.3608,91321.0,91316.0,0.6689563]
[1731721825890,0.00884007,91320.0,91316.0,0.6689563]
[1731721826074,0.00884007,91319.0,91316.0,0.6689563]
[1731721826387,0.3608,91321.0,91316.0,0.6689563]